fUSD/lending_fUSD_20240222
["ID","MTS","AMOUNT","RATE_DAILY","PERIOD"]
[314887073,1708618287481,-563.94,0.00033698,4]
[314887074,1708618287491,-500.0,0.00033698,4]
[314887075,1708618287501,-519.85,0.00033698,4]
[314887076,1708618287511,-2169.02,0.00033698,4]
[314887077,1708618287526,-500.0,0.00033698,4]
[314887078,1708618287536,-500.0,0.00033698,4]
[314887079,1708618287546,-500.0,0.00033698,4]
[314887080,1708618287555,-911.71,0.00033698,4]
[314887081,1708618287565,-500.0,0.00033698,4]
[314887082,1708618287574,-500.0,0.00033698,4]
[314887083,1708618287583,-500.0,0.00033698,4]
[314887084,1708618287593,-1111.18,0.00033698,4]
[314887085,1708618287603,-981.11,0.00033698,4]
[314887086,1708618287613,-15474.83,0.00033698,4]
[314887087,1708618287623,-1310.6,0.00033698,4]
[314887088,1708618287633,-3161.47,0.00033698,4]
[314887089,1708618287965,-774.09,0.00033698,4]
[314887090,1708618287974,-500.0,0.00033698,4]
[314887091,1708618287984,-500.0,0.00033698,4]
[314887092,1708618287994,-500.0,0.00033698,4]
[314887093,1708618288003,-765.57,0.00033698,4]
[314887094,1708618288012,-1414.29,0.00033698,2]
[314887095,1708618288024,-500.0,0.00033698,4]
[314887096,1708618288033,-500.0,0.00033698,4]
[314887097,1708618288043,-500.0,0.00033698,4]
[314887098,1708618288052,-649.86,0.00033698,4]
[314887099,1708618288061,-1179.58,0.00033698,4]
[314887100,1708618288070,-500.0,0.00033698,4]
[314887101,1708618288079,-1574.17,0.00033698,4]
[314887102,1708618288088,-500.0,0.00033698,4]
[314887103,1708618288098,-500.0,0.00033698,4]
[314887104,1708618288107,-685.37,0.00033698,4]
[314887105,1708618288116,-500.0,0.00033698,4]
[314887106,1708618288125,-4743.37,0.00033698,4]
[314887107,1708618288134,-500.0,0.00033698,4]
[314887108,1708618288144,-841.39,0.00033698,4]
[314887109,1708618288153,-500.0,0.00033698,4]
[314887110,1708618288163,-571.87,0.00033698,4]
[314887111,1708618288172,-500.0,0.00033698,4]
[314887112,1708618288181,-1517.29,0.00033698,4]
[314887113,1708618288191,-500.0,0.00033698,4]
[314887114,1708618288201,-500.0,0.00033698,4]
[314887115,1708618288210,-500.0,0.00033698,4]
[314887116,1708618288220,-1175.74,0.00033698,4]
[314887117,1708618288229,-3534.15,0.00033698,4]
[314887118,1708618288239,-500.0,0.00033698,4]
[314887119,1708618288248,-636.4,0.00033698,4]
[314887120,1708618288257,-500.0,0.00033698,4]
[314887121,1708618288268,-804.83,0.00033698,4]
[314887122,1708618288277,-500.0,0.00033698,4]
[314887123,1708618288286,-500.0,0.00033698,4]
[314887124,1708618288295,-650.72,0.00033698,4]
[314887125,1708618288305,-936.23,0.00033698,4]
[314887126,1708618288314,-802.34,0.00033698,4]
[314887127,1708618288324,-500.0,0.00033698,4]
[314887128,1708618288333,-1046.17,0.00033698,4]
[314887129,1708618288342,-500.0,0.00033698,4]
[314887130,1708618288351,-1976.0,0.00033698,4]
[314887131,1708618288360,-516.24132484,0.00033698,4]
[314887132,1708618288370,-631.0423641,0.00033698,4]
[314887133,1708618288379,-1173.75,0.00033698,4]
[314887134,1708618288389,-3825.32,0.00033698,4]
[314887135,1708618288399,-500.0,0.00033698,4]
[314887136,1708618288408,-1218.45,0.00033698,4]
[314887137,1708618288418,-1161.2,0.00033698,4]
[314887138,1708618288428,-2873.73,0.00033698,4]
[314887139,1708618288438,-1421.83,0.00033698,4]
[314887140,1708618288447,-565.23,0.00033698,4]
[314887141,1708618288457,-500.0,0.00033698,4]
[314887142,1708618288467,-890.32,0.00033698,4]
[314887143,1708618288476,-626.07,0.00033698,4]
[314887144,1708618288486,-500.0,0.00033698,4]
[314887145,1708618288495,-641.4102946,0.00033698,4]
[314887146,1708618288505,-500.0,0.00033698,4]
[314887147,1708618288515,-4927.14,0.00033698,4]
[314887148,1708618288525,-500.0,0.00033698,4]
[314887149,1708618288535,-500.0,0.00033698,4]
[314887150,1708618288545,-549.85,0.00033698,4]
[314887151,1708618288554,-10020.14,0.00033698,4]
[314887152,1708618288563,-500.0,0.00033698,4]
[314887153,1708618288572,-500.0,0.00033698,4]
[314887154,1708618288582,-500.0,0.00033698,4]
[314887155,1708618288591,-839.6,0.00033698,4]
[314887156,1708618288600,-500.0,0.00033698,4]
[314887157,1708618288610,-500.0,0.00033698,4]
[314887158,1708618288620,-620.898411,0.00033698,4]
[314887159,1708618288631,-500.0,0.00033698,4]
[314887160,1708618288652,-3895.73,0.00033698,4]
[314887161,1708618288674,-1324.86,0.00033698,4]
[314887162,1708618288694,-4532.66,0.00033698,4]
[314887163,1708618288715,-500.0,0.00033698,2]
[314887164,1708618288736,-1267.59,0.00033698,4]
[314887165,1708618288758,-1236.64,0.00033698,4]
[314887166,1708618288783,-500.0,0.00033698,4]
[314887167,1708618288799,-500.0,0.00033698,4]
[314887168,1708618288808,-500.0,0.00033698,4]
[314887169,1708618288818,-541.46,0.00033698,4]
[314887170,1708618288827,-1472.5,0.00033698,4]
[314887171,1708618288837,-500.0,0.00033698,4]
[314887172,1708618288846,-500.0,0.00033698,4]
[314887173,1708618288855,-500.0,0.00033698,4]
[314887174,1708618288864,-3676.7,0.00033698,4]
[314887175,1708618288874,-825.18,0.00033698,4]
[314887176,1708618288883,-2806.56,0.00033698,4]
[314887177,1708618288892,-757.82,0.00033698,4]
[314887178,1708618288901,-915.58,0.00033698,4]
[314887179,1708618288911,-500.0,0.00033698,4]
[314887180,1708618288920,-1290.4,0.00033698,4]
[314887181,1708618288930,-500.0,0.00033698,4]
[314887182,1708618288939,-500.0,0.00033698,4]
[314887183,1708618288948,-500.0,0.00033698,4]
[314887184,1708618288957,-500.0,0.00033698,4]
[314887185,1708618288966,-500.0,0.00033698,4]
[314887186,1708618288976,-968.98,0.00033698,4]
[314887187,1708618288985,-13677.78,0.00033698,4]
[314887188,1708618288995,-500.0,0.00033698,4]
[314887189,1708618289004,-1043.72,0.00033698,4]
[314887190,1708618289013,-11640.88,0.00033698,4]
[314887191,1708618289024,-500.0,0.00033698,4]
[314887192,1708618289033,-2733.42,0.00033698,4]
[314887193,1708618289042,-1326.85,0.00033698,4]
[314887194,1708618289051,-500.0,0.00033698,4]
[314887195,1708618289060,-720.82,0.00033698,4]
[314887196,1708618289070,-1391.36,0.00033698,4]
[314887197,1708618289078,-1085.88,0.00033698,4]
[314887198,1708618289088,-1337.26,0.00033698,4]
[314887199,1708618289097,-500.0,0.00033698,4]
[314887200,1708618289106,-597.84,0.00033698,4]
[314887201,1708618289115,-500.0,0.00033698,4]
[314887202,1708618289124,-11071.3,0.00033698,4]
[314887203,1708618289134,-2947.99,0.00033698,4]
[314887204,1708618289143,-500.0,0.00033698,4]
[314887205,1708618289152,-630.25,0.00033698,4]
[314887206,1708618289161,-8731.79,0.00033698,4]
[314887207,1708618289170,-500.0,0.00033698,4]
[314887208,1708618289179,-500.0,0.00033698,4]
[314887209,1708618289189,-500.0,0.00033698,4]
[314887210,1708618289198,-926.35,0.00033698,4]
[314887211,1708618289208,-540.23,0.00033698,4]
[314887212,1708618289217,-947.73,0.00033698,4]
[314887213,1708618289226,-500.0,0.00033698,4]
[314887214,1708618289236,-16800.98,0.00033698,4]
[314887215,1708618289246,-679.52,0.00033698,4]
[314887216,1708618289255,-500.0,0.00033698,4]
[314887217,1708618289265,-500.0,0.00033698,4]
[314887218,1708618289275,-2763.45,0.00033698,4]
[314887219,1708618289284,-500.0,0.00033698,4]
[314887220,1708618289293,-2283.83,0.00033698,4]
[314887221,1708618289302,-593.3,0.00033698,4]
[314887222,1708618289311,-923.93,0.00033698,4]
[314887223,1708618289320,-494.65403524,0.00033698,4]
[314887224,1708618289329,-500.0,0.00033698,4]
[314887225,1708618289338,-2615.23,0.00033698,4]
[314887226,1708618289348,-500.0,0.00033698,4]
[314887227,1708618289357,-500.0,0.00033698,4]
[314887228,1708618289366,-1449.55,0.00033698,4]
[314887229,1708618289375,-7029.3,0.00033698,4]
[314887230,1708618289383,-1361.97,0.00033698,4]
[314887231,1708618289393,-500.0,0.00033698,4]
[314887232,1708618289402,-4630.87,0.00033698,4]
[314887233,1708618289411,-747.57,0.00033698,4]
[314887234,1708618289420,-500.0,0.00033698,4]
[314887235,1708618289430,-2615.07,0.00033698,4]
[314887236,1708618289439,-618.94,0.00033698,4]
[314887237,1708618289448,-500.0,0.00033698,4]
[314887238,1708618289457,-536.99847201,0.00033698,4]
[314887239,1708618289467,-521.85,0.00033698,4]
[314887240,1708618289476,-500.0,0.00033698,4]
[314887241,1708618289485,-651.84,0.00033698,4]
[314887242,1708618289494,-5949.77,0.00033698,4]
[314887243,1708618289503,-805.0,0.00033698,4]
[314887244,1708618289513,-3716.68,0.00033698,4]
[314887245,1708618289524,-500.0,0.00033698,4]
[314887246,1708618289533,-779.4,0.00033698,4]
[314887247,1708618289543,-500.0,0.00033698,4]
[314887248,1708618289552,-20142.64,0.00033698,4]
[314887249,1708618289562,-44388.41,0.00033698,4]
[314887250,1708618289572,-814.71,0.00033698,4]
[314887251,1708618289581,-14555.66,0.00033698,4]
[314887252,1708618289591,-1879.92,0.00033698,4]
[314887253,1708618289600,-17970.35,0.00033698,4]
[314887254,1708618289610,-422.32229764,0.00033698,4]
[314887255,1708618289620,-4888.9,0.00033698,4]
[314887256,1708618289630,-500.0,0.00033698,4]
[314887257,1708618289639,-500.0,0.00033698,4]
[314887258,1708618289648,-780.0,0.00033698,4]
[314887259,1708618289658,-557.21,0.00033698,4]
[314887260,1708618289667,-4527.53,0.00033698,4]
[314887261,1708618289677,-651.25,0.00033698,4]
[314887262,1708618289687,-945.38,0.00033698,4]
[314887263,1708618289699,-592.68,0.00033698,4]
[314887264,1708618289708,-912.38,0.00033698,4]
[314887265,1708618289718,-875.97,0.00033698,4]
[314887266,1708618289728,-500.0,0.00033698,4]
[314887267,1708618289738,-2182.16,0.00033698,4]
[314887268,1708618289748,-1658.86,0.00033698,4]
[314887269,1708618289757,-5603.3,0.00033698,4]
[314887270,1708618289767,-509.43,0.00033698,4]
[314887271,1708618289778,-4769.66,0.00033698,4]
[314887272,1708618289788,-1891.76,0.00033698,4]
[314887273,1708618289797,-3057.33,0.00033698,4]
[314887274,1708618289807,-928.0,0.00033698,4]
[314887275,1708618289817,-500.0,0.00033698,4]
[314887276,1708618289826,-500.0,0.00033698,4]
[314887277,1708618289836,-502.92,0.00033698,4]
[314887278,1708618289846,-500.0,0.00033698,4]
[314887279,1708618289856,-1276.48,0.00033698,4]
[314887280,1708618289865,-952.51,0.00033698,4]
[314887281,1708618289874,-500.0,0.00033698,4]
[314887282,1708618289884,-1592.68,0.00033698,4]
[314887283,1708618289893,-648.5,0.00033698,4]
[314887284,1708618289902,-500.0,0.00033698,4]
[314887285,1708618289911,-500.0,0.00033698,4]
[314887286,1708618289920,-2577.86,0.00033698,4]
[314887287,1708618289930,-764.22,0.00033698,4]
[314887288,1708618289940,-2067.66,0.00033698,4]
[314887289,1708618289949,-500.0,0.00033698,4]
[314887290,1708618289959,-555.52,0.00033698,4]
[314887291,1708618289968,-973.82,0.00033698,4]
[314887292,1708618289978,-500.0,0.00033698,4]
[314887293,1708618289987,-8363.0,0.00033698,4]
[314887294,1708618289996,-828.25,0.00033698,4]
[314887295,1708618290005,-1608.06,0.00033698,4]
[314887296,1708618290015,-1134.25,0.00033698,4]
[314887297,1708618290026,-500.0,0.00033698,4]
[314887298,1708618290035,-500.0,0.00033698,4]
[314887299,1708618290045,-500.0,0.00033698,4]
[314887300,1708618290054,-1991.26,0.00033698,4]
[314887301,1708618290064,-2943.6,0.00033698,4]
[314887302,1708618290073,-500.64,0.00033698,4]
[314887303,1708618290082,-500.0,0.00033698,4]
[314887304,1708618290092,-500.0,0.00033698,4]
[314887305,1708618290101,-500.0,0.00033698,4]
[314887306,1708618290111,-4028.42,0.00033698,4]
[314887307,1708618290120,-500.0,0.00033698,4]
[314887308,1708618290129,-500.0,0.00033698,4]
[314887309,1708618290138,-2579.27,0.00033698,4]
[314887310,1708618290148,-500.0,0.00033698,4]
[314887311,1708618290157,-500.0,0.00033698,4]
[314887312,1708618290167,-500.0,0.00033698,4]
[314887313,1708618290176,-500.0,0.00033698,4]
[314887314,1708618290186,-7949.52,0.00033698,4]
[314887315,1708618290195,-1059.69,0.00033698,4]
[314887316,1708618290204,-13744.51,0.00033698,4]
[314887317,1708618290213,-700.35,0.00033698,4]
[314887318,1708618290223,-500.0,0.00033698,4]
[314887319,1708618290233,-563.26,0.00033698,4]
[314887320,1708618290242,-500.0,0.00033698,4]
[314887321,1708618290251,-880.24,0.00033698,4]
[314887322,1708618290260,-568.66,0.00033698,4]
[314887323,1708618290271,-500.0,0.00033698,4]
[314887324,1708618290360,-500.0,0.00033698,4]
[314887325,1708618290370,-500.0,0.00033698,4]
[314887326,1708618290379,-500.0,0.00033698,4]
[314887327,1708618290388,-1848.07,0.00033698,4]
[314887328,1708618290397,-500.0,0.00033698,4]
[314887329,1708618290406,-1953.77,0.00033698,4]
[314887330,1708618290415,-500.0,0.00033698,4]
[314887331,1708618290424,-529.33,0.00033698,4]
[314887332,1708618290434,-1626.52,0.00033698,4]
[314887333,1708618290445,-500.0,0.00033698,4]
[314887334,1708618290454,-500.0,0.00033698,4]
[314887335,1708618290463,-2300.47,0.00033698,4]
[314887336,1708618290472,-672.98,0.00033698,4]
[314887337,1708618290481,-500.0,0.00033698,4]
[314887338,1708618290489,-594.09,0.00033698,4]
[314887339,1708618290499,-4629.08,0.00033698,4]
[314887340,1708618290508,-642.74,0.00033698,4]
[314887341,1708618290517,-1295.86,0.00033698,4]
[314887342,1708618290527,-937.11,0.00033698,4]
[314887343,1708618290537,-500.0,0.00033698,4]
[314887344,1708618290546,-4061.2,0.00033698,4]
[314887345,1708618290556,-500.0,0.00033698,4]
[314887346,1708618290565,-500.0,0.00033698,4]
[314887347,1708618290574,-852.61,0.00033698,4]
[314887348,1708618290584,-6229.14,0.00033698,4]
[314887349,1708618290593,-726.38,0.00033698,4]
[314887350,1708618290602,-500.0,0.00033698,4]
[314887351,1708618290612,-1087.51,0.00033698,4]
[314887352,1708618290621,-500.0,0.00033698,4]
[314887353,1708618290630,-500.0,0.00033698,4]
[314887354,1708618290639,-636.4,0.00033698,4]
[314887355,1708618290649,-500.0,0.00033698,4]
[314887356,1708618290658,-1021.86,0.00033698,4]
[314887357,1708618290667,-838.89,0.00033698,4]
[314887358,1708618290677,-500.0,0.00033698,4]
[314887359,1708618290686,-500.0,0.00033698,4]
[314887360,1708618290699,-500.0,0.00033698,4]
[314887361,1708618290708,-500.0,0.00033698,4]
[314887362,1708618290717,-500.0,0.00033698,4]
[314887363,1708618290729,-1127.74,0.00033698,4]
[314887364,1708618290739,-3515.32,0.00033698,4]
[314887365,1708618290749,-672.53,0.00033698,4]
[314887366,1708618290758,-11133.39,0.00033698,4]
[314887367,1708618290771,-726.29,0.00033698,4]
[314887368,1708618290782,-537.16,0.00033698,4]
[314887369,1708618290791,-18475.21,0.00033698,4]
[314887370,1708618290801,-500.0,0.00033698,4]
[314887371,1708618290811,-4464.23,0.00033698,4]
[314887372,1708618290822,-500.0,0.00033698,4]
[314887373,1708618290831,-1588.77,0.00033698,4]
[314887374,1708618290841,-500.0,0.00033698,4]
[314887375,1708618290851,-500.0,0.00033698,4]
[314887376,1708618290860,-500.0,0.00033698,4]
[314887377,1708618290870,-500.0,0.00033698,4]
[314887378,1708618290880,-1337.25,0.00033698,4]
[314887379,1708618290889,-974.75,0.00033698,4]
[314887380,1708618290899,-685.61,0.00033698,4]
[314887381,1708618290908,-518.61552299,0.00033698,4]
[314887382,1708618290917,-500.0,0.00033698,4]
[314887383,1708618290926,-981.11,0.00033698,4]
[314887384,1708618290935,-1581.03,0.00033698,4]
[314887385,1708618290944,-508.59,0.00033698,4]
[314887386,1708618290953,-774.04,0.00033698,4]
[314887387,1708618290962,-500.0,0.00033698,4]
[314887388,1708618290971,-2026.95,0.00033698,4]
[314887389,1708618290980,-590.25404916,0.00033698,4]
[314887390,1708618290989,-500.0,0.00033698,4]
[314887391,1708618290998,-928.69,0.00033698,4]
[314887392,1708618291007,-2162.97,0.00033698,4]
[314887393,1708618291016,-1552.29,0.00033698,4]
[314887394,1708618291027,-1246.86,0.00033698,4]
[314887395,1708618291036,-500.0,0.00033698,4]
[314887396,1708618291045,-1566.45,0.00033698,4]
[314887397,1708618291054,-856.28,0.00033698,4]
[314887398,1708618291063,-500.0,0.00033698,4]
[314887399,1708618291072,-822.87,0.00033698,4]
[314887400,1708618291082,-500.0,0.00033698,4]
[314887401,1708618291091,-1664.58,0.00033698,4]
[314887402,1708618291100,-979.08,0.00033698,4]
[314887403,1708618291110,-2312.75,0.00033698,4]
[314887404,1708618291119,-1301.74,0.00033698,4]
[314887405,1708618291128,-500.0,0.00033698,4]
[314887406,1708618291137,-500.0,0.00033698,4]
[314887407,1708618291146,-500.0,0.00033698,4]
[314887408,1708618291156,-500.0,0.00033698,4]
[314887409,1708618291164,-1766.15,0.00033698,4]
[314887410,1708618291174,-500.0,0.00033698,4]
[314887411,1708618291183,-508.42,0.00033698,4]
[314887412,1708618291192,-567.2,0.00033698,4]
[314887413,1708618291201,-500.0,0.00033698,4]
[314887414,1708618291210,-871.62,0.00033698,4]
[314887415,1708618291220,-500.0,0.00033698,4]
[314887416,1708618291230,-500.0,0.00033698,4]
[314887417,1708618291239,-1599.53,0.00033698,4]
[314887418,1708618291248,-518.96097173,0.00033698,4]
[314887419,1708618291258,-1660.65,0.00033698,4]
[314887420,1708618291267,-500.0,0.00033698,4]
[314887421,1708618291278,-622.07,0.00033698,4]
[314887422,1708618291287,-3745.54,0.00033698,4]
[314887423,1708618291297,-838.28,0.00033698,4]
[314887424,1708618291306,-500.0,0.00033698,4]
[314887425,1708618291316,-3330.02,0.00033698,4]
[314887426,1708618291325,-691.06,0.00033698,4]
[314887427,1708618291335,-1414.44,0.00033698,4]
[314887428,1708618291343,-7663.65,0.00033698,4]
[314887429,1708618291352,-1289.21,0.00033698,4]
[314887430,1708618291362,-500.0,0.00033698,4]
[314887431,1708618291371,-500.0,0.00033698,4]
[314887432,1708618291380,-647.08,0.00033698,4]
[314887433,1708618291390,-548.88,0.00033698,4]
[314887434,1708618291399,-1185.6,0.00033698,4]
[314887435,1708618291408,-1413.03,0.00033698,4]
[314887436,1708618291417,-2706.19,0.00033698,4]
[314887437,1708618291426,-500.0,0.00033698,4]
[314887438,1708618291435,-500.0,0.00033698,4]
[314887439,1708618291444,-1325.03,0.00033698,4]
[314887440,1708618291454,-1639.74,0.00033698,4]
[314887441,1708618291463,-500.0,0.00033698,4]
[314887442,1708618291472,-975.56,0.00033698,4]
[314887443,1708618291481,-500.0,0.00033698,4]
[314887444,1708618291490,-1744.18,0.00033698,4]
[314887445,1708618291498,-500.0,0.00033698,4]
[314887446,1708618291507,-7768.0,0.00033698,4]
[314887447,1708618291516,-500.0,0.00033698,4]
[314887448,1708618291527,-602.21,0.00033698,4]
[314887449,1708618291536,-992.95,0.00033698,4]
[314887450,1708618291546,-773.87,0.00033698,4]
[314887451,1708618291555,-500.0,0.00033698,4]
[314887452,1708618291564,-2670.2,0.00033698,4]
[314887453,1708618291574,-500.0,0.00033698,4]
[314887454,1708618291583,-384.0,0.00033699,2]
[314887455,1708618291592,-295.507495,0.0003387,2]
[314887456,1708618291602,-298.036869,0.0003387,2]
[314887457,1708618291611,-308.542885,0.0003387,2]
[314887458,1708618291620,-164.384597,0.0003387,2]
[314887459,1708618291630,-200.0,0.000339,7]
[314887460,1708618291639,-152.3554967,0.000339,2]
[314887461,1708618291648,-152.35549642,0.000339,2]
[314887462,1708618291657,-152.35549642,0.000339,2]
[314887463,1708618291667,-152.35549642,0.000339,2]
[314887464,1708618291679,-152.35549642,0.000339,2]
[314887465,1708618291688,-152.35549642,0.000339,2]
[314887466,1708618291697,-152.35549642,0.000339,2]
[314887467,1708618291706,-152.35549642,0.000339,2]
[314887468,1708618291716,-152.35549642,0.000339,2]
[314887469,1708618291725,-152.35549642,0.000339,2]
[314887470,1708618291734,-152.35549642,0.000339,2]
[314887471,1708618291744,-152.35549642,0.000339,2]
[314887472,1708618291753,-152.35549642,0.000339,2]
[314887473,1708618291764,-152.35549642,0.000339,2]
[314887474,1708618291774,-152.35549642,0.000339,2]
[314887475,1708618291784,-152.35549642,0.000339,2]
[314887476,1708618291793,-152.35549642,0.000339,2]
[314887477,1708618291803,-152.35549642,0.000339,2]
[314887478,1708618291812,-152.35549642,0.000339,2]
[314887479,1708618291821,-152.35549642,0.000339,2]
[314887480,1708618291830,-152.35549642,0.000339,2]
[314887481,1708618291839,-152.35549642,0.000339,2]
[314887482,1708618291848,-152.35549642,0.000339,2]
[314887483,1708618291858,-152.35549642,0.000339,2]
[314887484,1708618291867,-152.35549642,0.000339,2]
[314887485,1708618291876,-152.35549642,0.000339,2]
[314887486,1708618291885,-152.35549642,0.00033911,2]
[314887487,1708618291894,-10309.7538923,0.00033949,2]
[314887488,1708618291902,-131018.3134716,0.00033949,2]
[314887489,1708618291911,-4150.9454458,0.00033949,2]
[314887490,1708618291920,-5152.8663817,0.00033949,2]
[314887491,1708618291929,-5467.1244367,0.00033949,2]
[314887492,1708618291939,-26226.3505586,0.00033949,2]
[314887493,1708618291948,-500.0,0.00033972,4]
[314887494,1708618291956,-500.0,0.00033972,4]
[314887495,1708618291966,-500.0,0.00033972,4]
[314887496,1708618291975,-435.12046517,0.00033972,4]
[314887497,1708618291984,-681.84,0.00033972,4]
[314887498,1708618291993,-507.1,0.00033972,4]
[314887499,1708618292002,-500.0,0.00033972,4]
[314887500,1708618292011,-500.0,0.00033972,4]
[314887501,1708618292020,-299.86824149,0.00033972,4]
[314887502,1708618292030,-2741.93,0.00033972,4]
[314887503,1708618292039,-500.0,0.00033972,4]
[314887504,1708618292048,-500.0,0.00033972,4]
[314887505,1708618292058,-4425.58,0.00033972,4]
[314887506,1708618292067,-500.0,0.00033972,4]
[314887507,1708618292075,-500.0,0.00033972,4]
[314887508,1708618292085,-500.0,0.00033972,4]
[314887509,1708618292094,-500.0,0.00033972,4]
[314887510,1708618292103,-500.0,0.00033972,2]
[314887511,1708618292112,-250.0,0.00033972,4]
[314887512,1708618292121,-520.47,0.00033972,4]
[314887513,1708618292130,-500.0,0.00033972,4]
[314887514,1708618292139,-500.0,0.00033972,4]
[314887515,1708618292148,-513.14,0.00033972,4]
[314887516,1708618292157,-567.0,0.00033972,4]
[314887517,1708618292166,-701.75,0.00033972,4]
[314887518,1708618292175,-500.0,0.00033972,4]
[314887519,1708618292184,-500.0,0.00033972,4]
[314887520,1708618292193,-500.0,0.00033972,4]
[314887521,1708618292202,-500.0,0.00033972,4]
[314887522,1708618292211,-813.56,0.00033972,4]
[314887523,1708618292220,-500.0,0.00033972,4]
[314887524,1708618292230,-500.0,0.00033972,4]
[314887525,1708618292239,-500.0,0.00033972,4]
[314887526,1708618292247,-500.0,0.00033972,4]
[314887527,1708618292256,-500.0,0.00033972,4]
[314887528,1708618292265,-500.0,0.00033972,4]
[314887529,1708618292275,-500.0,0.00033972,4]
[314887530,1708618292284,-500.0,0.00033972,4]
[314887531,1708618292294,-182.58758407,0.00033972,4]
[314887532,1708618292303,-500.0,0.00033972,4]
[314887533,1708618292312,-500.0,0.00033972,4]
[314887534,1708618292321,-561.63,0.00033972,4]
[314887535,1708618292330,-561.94974105,0.00033972,4]
[314887536,1708618292339,-500.0,0.00033972,4]
[314887537,1708618292348,-852.09,0.00033972,4]
[314887538,1708618292360,-613.62605796,0.00033972,4]
[314887539,1708618292369,-500.0,0.00033972,4]
[314887540,1708618292378,-500.0,0.00033972,4]
[314887541,1708618292387,-500.0,0.00033972,4]
[314887542,1708618292396,-500.0,0.00033972,4]
[314887543,1708618292407,-540.85,0.00033972,4]
[314887544,1708618292416,-500.0,0.00033972,4]
[314887545,1708618292425,-500.0,0.00033972,4]
[314887546,1708618292434,-500.0,0.00033972,4]
[314887547,1708618292443,-500.0,0.00033972,4]
[314887548,1708618292452,-577.82521613,0.00033972,4]
[314887549,1708618292461,-500.0,0.00033972,4]
[314887550,1708618292470,-500.0,0.00033972,4]
[314887551,1708618292479,-500.0,0.00033972,4]
[314887552,1708618292488,-500.0,0.00033972,4]
[314887553,1708618292497,-500.0,0.00033972,4]
[314887554,1708618292507,-548.58,0.00033972,4]
[314887555,1708618292516,-1013.57,0.00033972,4]
[314887556,1708618292525,-500.0,0.00033972,4]
[314887557,1708618292535,-560.4363477,0.00033972,4]
[314887558,1708618292544,-500.0,0.00033972,4]
[314887559,1708618292553,-500.0,0.00033972,4]
[314887560,1708618292562,-1014.83,0.00033972,4]
[314887561,1708618292572,-500.0,0.00033972,4]
[314887562,1708618292580,-500.0,0.00033972,4]
[314887563,1708618292590,-500.0,0.00033972,4]
[314887564,1708618292599,-1535.09,0.00033972,4]
[314887565,1708618292607,-500.0,0.00033972,4]
[314887566,1708618292617,-539.77,0.00033972,4]
[314887567,1708618292626,-500.0,0.00033972,4]
[314887568,1708618292634,-621.02,0.00033972,4]
[314887569,1708618292644,-562.86711434,0.00033972,4]
[314887570,1708618292653,-500.0,0.00033972,4]
[314887571,1708618292662,-565.98197403,0.00033972,4]
[314887572,1708618292671,-924.07,0.00033972,4]